bitfinex-derivatives/quotes_SOLF0:USTF0_20241127
["timestamp","ask_amount","ask_price","bid_price","bid_amount"]
[1732746853007,2.0646,241.87,241.83,2.34]
[1732746853212,6.29301469,241.9,241.82,2.34]
[1732746853410,7.80657117,241.89,241.82,2.34]
[1732746853610,7.80661835,241.88,241.82,2.34]
[1732746853813,2.0646,241.87,241.84,2.0648]
[1732746854912,2.0646,241.87,241.83,2.0649]
[1732746856713,7.81504427,241.86,241.83,2.0649]
[1732746857012,7.81504427,241.85,241.83,2.0649]
[1732746857213,2.0646,241.87,241.83,2.0649]
[1732746857412,7.8156838,241.86,241.83,2.0649]
[1732746857606,2.0646,241.87,241.83,2.0649]
[1732746858007,7.81578641,241.86,241.83,2.0649]
[1732746858311,2.0646,241.87,241.83,2.0649]
[1732746858514,7.81581159,241.86,241.83,2.0649]
[1732746858713,2.0646,241.87,241.83,2.0649]
[1732746859015,7.8157437,241.86,241.83,2.0649]
[1732746859210,7.8157437,241.85,241.83,2.0649]
[1732746859415,2.0646,241.87,241.83,2.0649]
[1732746859614,7.81636704,241.86,241.83,2.0649]
[1732746859915,7.81636704,241.85,241.83,2.0649]
[1732746860115,2.0646,241.87,241.83,2.0649]
[1732746860315,7.8163343,241.86,241.83,2.0649]
[1732746860520,7.8163343,241.85,241.83,2.0649]
[1732746860717,2.0646,241.87,241.84,2.0648]
[1732746861019,7.81685098,241.86,241.84,2.0648]
[1732746861313,7.81685098,241.85,241.84,2.0648]
[1732746861514,7.81685098,241.86,241.84,2.0648]
[1732746861714,7.81685098,241.85,241.84,2.0648]
[1732746862017,7.81685098,241.86,241.84,2.0648]
[1732746862218,7.81685098,241.85,241.84,2.0648]
[1732746862412,7.81685098,241.86,241.82,8.63301469]
[1732746862612,7.81685098,241.85,241.84,2.0648]
[1732746862815,2.0644,241.89,241.84,6.29301469]
[1732746863015,7.81785782,241.88,241.84,6.29301469]
[1732746863218,2.0644,241.89,241.85,2.0648]
[1732746863219,7.81785782,241.87,241.85,2.0648]
[1732746863417,7.81785782,241.86,241.82,2.34]
[1732746863613,2.0644,241.89,241.82,2.34]
[1732746863816,7.81835962,241.88,241.83,6.29301469]
[1732746864019,7.81835962,241.87,241.83,6.29301469]
[1732746864315,7.81835962,241.86,241.83,6.29301469]
[1732746864615,2.0644,241.89,241.83,6.29301469]
[1732746864919,7.81840686,241.88,241.83,6.29301469]
[1732746865111,2.0644,241.89,241.83,6.29301469]
[1732746865112,7.81840686,241.87,241.83,6.29301469]
[1732746865316,2.0644,241.89,241.83,6.29301469]
[1732746865618,7.81827879,241.88,241.83,6.29301469]
[1732746865815,2.0644,241.89,241.83,6.29301469]
[1732746865816,7.81827879,241.87,241.83,6.29301469]
[1732746866016,2.0644,241.89,241.86,2.0646]
[1732746866217,7.81827893,241.88,241.86,2.0646]
[1732746866413,7.81827893,241.87,241.86,2.0646]
[1732746872530,7.81827893,241.87,241.83,6.29301469]
[1732746872531,6.29301469,241.94,241.9,2.0643]
[1732746872829,7.81769042,241.93,241.85,6.29301469]
[1732746873129,7.81769042,241.92,241.85,6.29301469]
[1732746873329,7.81769042,241.91,241.85,6.29301469]
[1732746873530,7.81769042,241.9,241.87,6.29301469]
[1732746873730,2.064,241.94,241.87,6.29301469]
[1732746873923,7.81658959,241.93,241.87,6.29301469]
[1732746874229,7.81658959,241.92,241.87,6.29301469]
[1732746874428,7.81658959,241.91,241.87,6.29301469]
[1732746874828,7.81658959,241.9,241.87,6.29301469]
[1732746875029,2.064,241.94,241.88,2.34]
[1732746875030,7.81658959,241.89,241.88,2.34]
[1732746875629,7.81658959,241.89,241.88,4.4045]
[1732746876427,8.35701469,241.94,241.9,2.0643]
[1732746876623,7.81477198,241.93,241.9,2.0643]
[1732746876827,7.81477198,241.92,241.9,2.0643]
[1732746877027,7.81477198,241.91,241.9,2.0643]
[1732746877225,7.81477198,241.93,241.9,2.0643]
[1732746877429,7.81477198,241.92,241.9,2.0643]
[1732746877727,7.81477198,241.91,241.9,2.0643]
[1732746883133,7.81477198,241.91,241.88,2.34]
[1732746883334,7.81477198,241.9,241.89,2.0644]
[1732746884437,7.81369911,241.9,241.89,2.0644]
[1732746886132,6.29301469,241.92,241.89,2.0644]
[1732746886331,7.81375742,241.91,241.89,2.0644]
[1732746886534,7.81375742,241.9,241.89,2.0644]
[1732746888940,2.0641,241.93,241.86,2.34]
[1732746889140,7.81346146,241.92,241.9,2.0643]
[1732746889343,7.81346146,241.91,241.9,2.0643]
[1732746892245,7.81346146,241.91,241.89,2.0644]
[1732746892446,7.81346146,241.9,241.89,2.0644]
[1732746895047,6.29301469,241.95,241.89,2.0644]
[1732746895247,7.81218411,241.94,241.89,2.0644]
[1732746895439,7.81218411,241.93,241.9,2.0643]
[1732746895639,7.81218411,241.92,241.9,2.0643]
[1732746895848,7.81218411,241.91,241.9,2.0643]
[1732746897146,38.29588604,241.98,241.92,2.0641]
[1732746897344,7.81131855,241.97,241.92,2.0641]
[1732746897542,2.0639,241.95,241.92,2.0641]
[1732746897745,7.81131855,241.94,241.92,2.0641]
[1732746897948,7.81131855,241.93,241.92,2.0641]
[1732746900749,2.0639,241.96,241.92,2.0641]
[1732746900944,7.80928181,241.95,241.92,2.0641]
[1732746901146,7.80928181,241.95,241.88,6.29301469]
[1732746901147,7.80928181,241.94,241.93,2.0641]
[1732746901348,7.80928181,241.96,241.93,2.0641]
[1732746901650,7.80928181,241.95,241.93,2.0641]
[1732746901852,7.80928181,241.94,241.93,2.0641]
[1732746902257,7.80928181,241.94,241.91,2.0642]
[1732746902551,7.80928181,241.93,241.88,6.29301469]
[1732746902751,2.0638,241.96,241.88,6.29301469]
[1732746902948,7.80901412,241.95,241.88,6.29301469]
[1732746903148,7.80901412,241.94,241.88,6.29301469]
[1732746903348,7.80901412,241.93,241.88,6.29301469]
[1732746903549,2.0638,241.96,241.88,6.29301469]
[1732746903751,7.80917094,241.95,241.88,6.29301469]
[1732746903953,7.80917094,241.94,241.92,2.0642]
[1732746904354,2.0638,241.96,241.92,2.0642]
[1732746904355,7.80917094,241.93,241.92,2.0642]
[1732746905048,7.80917094,241.95,241.92,2.0642]
[1732746905252,7.80917094,241.94,241.92,2.0642]
[1732746905457,7.80917094,241.93,241.92,2.0642]
[1732746905753,7.80917094,241.95,241.92,2.0642]
[1732746905955,7.80917094,241.94,241.92,2.0642]
[1732746906147,7.80917094,241.93,241.92,2.0642]
[1732746906350,7.80917094,241.95,241.92,2.0642]
[1732746906548,7.80917094,241.94,241.92,2.0642]
[1732746906751,7.80917094,241.93,241.92,2.0642]
[1732746907057,7.80917094,241.95,241.92,2.0642]
[1732746907257,7.80917094,241.94,241.92,2.0642]
[1732746907459,7.80917094,241.93,241.92,2.0642]
[1732746908153,7.80917094,241.95,241.92,2.0642]
[1732746908357,7.80917094,241.94,241.92,2.0642]
[1732746908552,7.80917094,241.93,241.92,2.0642]
[1732746908752,7.80917094,241.95,241.92,2.0642]
[1732746908957,7.80917094,241.94,241.92,2.0642]
[1732746909254,7.80917094,241.95,241.92,2.0642]
[1732746909956,7.80917094,241.95,241.9,6.29301469]
[1732746910155,7.80917094,241.94,241.9,6.29301469]
[1732746910356,1.2976,241.98,241.92,2.0642]
[1732746910357,7.80917094,241.93,241.92,2.0642]
[1732746910560,7.80917094,241.93,241.9,51.45119836]
[1732746910757,3.3613,241.98,241.9,51.45119836]
[1732746910957,7.81070377,241.97,241.9,51.45119836]
[1732746911162,7.81070377,241.96,241.9,51.45119836]
[1732746911459,7.81070377,241.95,241.9,51.45119836]
[1732746911761,7.81070377,241.94,241.9,45.15818367]
[1732746911957,31.51288416,242.01,241.9,45.15818367]
[1732746912156,7.81045917,242.0,241.98,2.0637]
[1732746912357,7.81045917,241.99,241.98,2.0637]
[1732746913565,2.063,242.06,241.98,6.29301469]
[1732746913757,7.80696635,242.05,241.98,6.29301469]
[1732746913955,7.80696635,242.04,241.98,6.29301469]
[1732746914151,7.80696635,242.03,242.0,6.29301469]
[1732746914358,7.80231809,242.02,242.0,6.29301469]
[1732746914557,1.3171,242.08,242.0,6.29301469]
[1732746914755,7.80229557,242.07,242.05,2.063]
[1732746914957,7.80229557,242.06,242.04,2.34]
[1732746915153,7.80229557,242.05,242.04,2.34]
[1732746915559,7.88239918,242.05,242.04,2.34]
[1732746916763,7.88239918,242.05,242.04,10.69611469]
[1732746916964,32.00111705,242.14,242.04,8.63301469]
[1732746917263,7.81014994,242.13,242.06,6.29301469]
[1732746917458,32.00111705,242.14,242.07,2.0628]
[1732746917459,7.81014994,242.12,242.07,2.0628]
[1732746917659,7.81014994,242.11,242.06,6.29301469]
[1732746917859,7.81014994,242.1,242.06,6.29301469]
[1732746918062,7.81014994,242.09,242.07,2.0629]
[1732746918257,7.81014994,242.08,242.06,6.29301469]
[1732746918464,34.06341705,242.14,242.06,6.29301469]
[1732746918766,9.8631388,242.13,242.08,2.0628]
[1732746918962,7.8007388,242.12,242.08,2.0628]
[1732746919160,7.8007388,242.11,242.08,2.0628]
[1732746919359,7.8007388,242.1,242.06,6.29301469]
[1732746919561,29.43481705,242.14,242.08,6.29301469]
[1732746919766,7.79561285,242.13,242.08,6.29301469]
[1732746919966,7.79561285,242.12,242.08,6.29301469]
[1732746920168,29.43481705,242.14,242.1,2.0626]
[1732746920169,7.79561285,242.11,242.1,2.0626]
[1732746920365,29.43481705,242.14,242.1,2.34]
[1732746920769,8.35511469,242.17,242.1,2.34]
[1732746921970,8.35511469,242.17,242.12,2.0624]
[1732746922272,2.0621,242.17,242.12,2.0624]
[1732746922566,2.0621,242.17,242.1,8.63301469]
[1732746922567,2.062,242.18,242.13,2.0624]
[1732746922766,6.29301469,242.18,242.13,2.0624]
[1732746923359,6.29301469,242.16,242.11,2.34]
[1732746925063,2.0623,242.14,242.11,2.34]
[1732746927960,2.6056,242.24,242.13,2.0624]
[1732746927961,2.0618,242.2,242.13,2.0624]
[1732746928166,6.29301469,242.19,242.13,2.0624]
[1732746928563,2.0621,242.16,242.13,2.0624]
[1732746930675,7.79217533,242.15,242.13,2.0624]
[1732746930875,2.0621,242.16,242.13,2.0624]
[1732746931085,7.79214684,242.15,242.14,2.0623]
[1732746931281,6.29301469,242.22,242.14,2.0623]
[1732746931580,2.0619,242.19,242.13,6.29301469]
[1732746931881,7.79179707,242.18,242.15,2.0622]
[1732746932076,7.79179707,242.17,242.15,2.0622]
[1732746932383,2.0619,242.19,242.15,2.0622]
[1732746932586,2.062,242.17,242.13,2.0623]
[1732746932779,2.062,242.17,242.12,6.29301469]
[1732746933482,6.29301469,242.2,242.12,6.29301469]
[1732746933682,7.78889137,242.19,242.12,6.29301469]
[1732746933887,7.78889137,242.18,242.12,6.29301469]
[1732746934086,6.29301469,242.2,242.12,6.29301469]
[1732746934388,7.79589781,242.19,242.12,6.29301469]
[1732746934585,2.0621,242.17,242.13,2.0623]
[1732746935185,6.29301469,242.2,242.13,2.0623]
[1732746935381,6.29301469,242.2,242.11,2.34]
[1732746935382,7.79454954,242.19,242.11,10.69551469]
[1732746935588,6.29301469,242.2,242.11,8.63301469]
[1732746935790,7.79464186,242.19,242.11,8.63301469]
[1732746935987,2.0622,242.16,242.12,2.0625]
[1732746936195,6.29301469,242.2,242.12,2.0625]
[1732746936491,7.79443152,242.19,242.12,2.0625]
[1732746936690,2.0622,242.16,242.12,2.0625]
[1732746937489,6.29301469,242.2,242.12,2.0625]
[1732746937693,7.79441435,242.19,242.12,2.0625]
[1732746937893,6.29301469,242.2,242.12,2.0625]
[1732746938194,7.79444199,242.19,242.12,2.0625]
[1732746938394,6.29301469,242.2,242.12,2.0625]
[1732746938594,7.79487083,242.19,242.12,2.0625]
[1732746938795,6.29301469,242.21,242.12,8.35551469]
[1732746939094,2.0622,242.16,242.12,2.0625]
[1732746939493,6.29301469,242.21,242.12,2.0625]
[1732746939694,7.79573111,242.2,242.12,2.0625]
[1732746939894,7.79573111,242.19,242.12,2.0625]
[1732746940090,6.29301469,242.21,242.12,2.0625]
[1732746940393,2.0622,242.16,242.12,2.0625]
[1732746941593,2.0619,242.19,242.12,2.0625]
[1732746941793,7.79761425,242.18,242.12,8.35551469]
[1732746941994,6.29301469,242.21,242.12,2.0625]
[1732746942197,6.29301469,242.19,242.13,2.32]
[1732746942393,7.79761425,242.18,242.13,2.32]
[1732746942697,7.79761425,242.17,242.13,2.32]
[1732746942893,2.0621,242.16,242.13,2.32]
[1732746943596,2.0622,242.15,242.13,2.32]
[1732746946601,2.0621,242.16,242.13,4.3824]
[1732746946807,6.29301469,242.21,242.13,2.32]
[1732746946997,7.80537314,242.2,242.13,2.32]
[1732746947197,2.062,242.18,242.13,2.32]
[1732746947397,7.80537314,242.17,242.13,2.32]
[1732746947597,6.29301469,242.22,242.13,2.32]
[1732746947801,7.80706534,242.21,242.13,2.32]
[1732746948004,6.29301469,242.18,242.1,45.30902818]
[1732746948196,6.29301469,242.18,242.13,2.32]
[1732746948501,7.80706534,242.17,242.12,2.32]
[1732746948704,2.0622,242.16,242.12,2.32]
[1732746948897,7.80706534,242.15,242.12,2.32]
[1732746949097,6.29301469,242.18,242.12,2.32]
[1732746949294,7.80966635,242.17,242.12,2.32]
[1732746949499,2.0623,242.15,242.12,2.32]
[1732746949705,7.80966635,242.14,242.12,2.32]
[1732746949901,2.0624,242.13,242.12,2.32]
[1732746950403,7.81549224,242.13,242.1,45.30902818]
[1732746950706,2.0625,242.11,242.1,45.30902818]
[1732746951100,2.0625,242.12,242.1,45.30902818]
[1732746955402,7.83568293,242.11,242.1,45.30902818]
[1732746956605,7.83568293,242.11,242.1,51.60204287]
[1732746957609,7.83568293,242.11,242.1,45.30902818]
[1732746964813,7.83568293,242.11,242.1,26.73373053]
[1732746965317,2.0625,242.12,242.1,26.73373053]
[1732746966314,2.6056,242.24,242.11,6.29301469]
[1732746966515,2.6056,242.24,242.13,6.29301469]
[1732746966516,6.29301469,242.22,242.13,6.29301469]
[1732746966810,2.0618,242.2,242.14,2.0623]
[1732746967011,6.29301469,242.22,242.12,6.29301469]
[1732746967411,2.0621,242.16,242.13,2.0624]
[1732746969913,2.062,242.17,242.13,2.0624]
[1732746971710,6.29301469,242.22,242.13,2.0624]
[1732746971711,2.0621,242.16,242.13,2.0624]
[1732746974314,2.0619,242.19,242.16,2.0621]
[1732746974519,2.0619,242.19,242.15,2.32]
[1732746976020,2.0619,242.19,242.16,2.0621]
[1732746976424,2.6056,242.24,242.16,2.0621]
[1732746976425,2.0618,242.2,242.16,2.0621]
[1732746976924,2.0618,242.2,242.15,2.32]
[1732746977124,2.0618,242.2,242.17,2.062]
[1732746977327,2.0618,242.2,242.15,2.32]
[1732746977918,2.0618,242.2,242.16,6.29301469]
[1732746978128,3.3784,242.23,242.18,6.29301469]
[1732746978318,1.3168,242.23,242.18,6.29301469]
[1732746978724,2.0616,242.22,242.19,2.0618]
[1732746980822,2.0615,242.24,242.2,2.0617]
[1732746981128,6.29301469,242.28,242.2,2.0617]
[1732746981727,2.0613,242.26,242.2,2.0617]
[1732746982030,6.29301469,242.28,242.2,2.0617]
[1732746982525,2.0615,242.24,242.2,2.0617]
[1732746982726,6.29301469,242.28,242.2,2.0617]
[1732746984030,2.0615,242.23,242.2,2.0617]
[1732746984220,6.29301469,242.26,242.18,8.35491469]
[1732746984827,6.29301469,242.26,242.19,2.0619]
[1732746987027,2.0616,242.23,242.19,2.0619]
[1732746987429,6.29301469,242.26,242.19,2.0619]
[1732746987624,2.0615,242.23,242.17,2.062]
[1732746987832,6.29301469,242.26,242.17,2.062]
[1732746988234,2.0616,242.22,242.17,2.062]
[1732746988532,6.29301469,242.24,242.1,1.2337]
[1732746988734,2.5393,242.3,242.11,2.32]
[1732746988735,2.0622,242.16,242.11,2.32]
[1732746989036,6.29301469,242.21,242.12,2.32]
[1732746989737,6.29301469,242.19,242.12,2.32]
[1732746990142,6.29301469,242.19,242.12,4.3825]
[1732746991829,2.0621,242.17,242.12,4.3825]
[1732746992230,2.0621,242.17,242.12,10.67551469]
[1732746992431,2.5363,242.22,242.12,8.61301469]
[1732746992636,2.0619,242.19,242.12,8.61301469]
[1732746992836,2.5363,242.22,242.12,8.61301469]
[1732746993033,8.82931469,242.22,242.12,8.61301469]
[1732746993235,2.062,242.18,242.14,2.0622]
[1732746993740,2.062,242.18,242.15,2.0622]
[1732746995040,2.0622,242.16,242.12,4.3824]
[1732746996337,31.71568646,242.21,242.12,2.32]
[1732746996542,2.5363,242.22,242.14,6.29301469]
[1732746996945,2.0618,242.2,242.15,2.0622]
[1732746997245,31.71588989,242.21,242.13,6.29301469]
[1732746998841,2.0619,242.19,242.15,2.0621]
[1732746999843,2.0619,242.19,242.16,2.0621]
[1732747000945,2.0619,242.19,242.15,2.0622]
[1732747002445,2.0619,242.19,242.13,6.29301469]
[1732747003437,31.71588989,242.21,242.18,6.29301469]
[1732747003637,6.29301469,242.33,242.19,2.3]
[1732747003844,6.29301469,242.33,242.23,6.29301469]
[1732747004138,6.29301469,242.33,242.24,2.0614]
[1732747004540,3.8388,242.34,242.24,2.0614]
[1732747004743,6.29301469,242.31,242.24,2.0614]
[1732747005643,2.061,242.29,242.24,2.0614]
[1732747007841,2.0611,242.28,242.24,2.0614]
[1732747008254,6.29301469,242.31,242.22,2.0616]
[1732747008447,2.0613,242.26,242.22,8.35461469]
[1732747008949,6.29301469,242.31,242.19,2.3]
[1732747009160,2.0614,242.25,242.21,2.0617]
[1732747009351,2.0614,242.25,242.23,6.29301469]
[1732747014149,2.0614,242.25,242.21,8.35471469]
[1732747015044,2.0615,242.24,242.21,8.35471469]
[1732747015950,2.0614,242.25,242.21,8.35471469]
[1732747016851,2.0614,242.25,242.21,2.0617]
[1732747021757,6.29301469,242.29,242.21,2.0617]
[1732747022650,2.0614,242.25,242.21,2.0617]
[1732747024549,2.0615,242.24,242.2,8.35481469]
[1732747026058,2.0615,242.24,242.13,3.6635]
[1732747026059,2.0622,242.15,242.04,2.63097455]
[1732747026360,6.29301469,242.19,242.11,6.29301469]
[1732747026661,6.29301469,242.19,242.04,3.857]
[1732747026862,6.29301469,242.17,242.09,6.29301469]
[1732747027059,6.29301469,242.17,242.04,2.6377]
[1732747027260,2.0627,242.1,242.05,4.3631]
[1732747027558,6.29301469,242.13,241.99,48.85164389]
[1732747027756,6.29301469,242.11,241.99,48.85164389]
[1732747027951,6.29301469,242.11,242.02,8.35631469]
[1732747028356,2.0629,242.08,242.03,2.0632]
[1732747028964,2.0629,242.08,242.04,6.29301469]
[1732747029160,6.29301469,242.11,242.02,2.3]
[1732747029363,2.0631,242.05,242.01,6.29301469]
[1732747029558,6.29301469,242.09,242.01,2.3]
[1732747030667,6.29301469,242.09,241.99,57.20815858]
[1732747031762,2.0632,242.04,241.99,57.20815858]
[1732747031962,31.3958289,242.08,241.99,33.98972082]
[1732747032165,6.29301469,242.07,241.95,2.3]
[1732747032362,7.61461469,242.07,241.97,6.29301469]
[1732747032564,7.61461469,242.07,241.94,48.14273147]
[1732747032862,6.29301469,242.05,241.95,6.29301469]
[1732747033067,6.29301469,242.05,241.94,48.14273147]
[1732747033266,6.29301469,242.05,241.96,6.29301469]
[1732747033664,8.59301469,242.05,241.94,6.29301469]
[1732747033860,2.0638,241.97,241.94,6.29301469]
[1732747034065,8.59301469,242.05,241.91,2.3]
[1732747034265,2.0635,242.0,241.93,6.29301469]
[1732747034461,6.29301469,242.03,241.93,6.29301469]
[1732747034964,2.4825,242.06,241.96,6.29301469]
[1732747035165,2.3,242.05,241.96,6.29301469]
[1732747035370,2.4825,242.06,241.96,6.29301469]
[1732747035371,4.7825,242.06,241.96,6.29301469]
[1732747036967,2.0635,242.0,241.96,6.29301469]
[1732747039059,6.29301469,242.04,241.96,6.29301469]
[1732747039260,6.29301469,241.98,241.85,3.15704571]
[1732747039467,6.29301469,241.91,241.82,6.29301469]
[1732747039866,2.0647,241.86,241.83,6.29301469]
[1732747040270,2.0647,241.86,241.77,2.3]
[1732747040271,6.29301469,241.91,241.81,6.29301469]
[1732747041068,2.065,241.83,241.81,6.29301469]
[1732747041262,6.29301469,241.89,241.73,3.15396579]
[1732747041561,6.29301469,241.89,241.79,6.29301469]
[1732747041963,2.065,241.83,241.74,2.0657]
[1732747042171,6.29301469,241.83,241.69,9.88788728]
[1732747042365,6.29301469,241.83,241.73,6.29301469]
[1732747042565,2.0653,241.79,241.73,8.35871469]
[1732747042771,6.29301469,241.83,241.7,2.3]
[1732747042971,6.29301469,241.83,241.72,6.29301469]
[1732747043173,6.29301469,241.81,241.7,2.3]
[1732747043680,2.0654,241.78,241.71,8.35901469]
[1732747044179,6.29301469,241.81,241.71,8.35901469]
[1732747044869,2.4752,241.84,241.75,6.29301469]
[1732747045068,2.4752,241.84,241.74,2.0657]
[1732747045266,2.4752,241.84,241.75,6.29301469]
[1732747046073,2.0652,241.8,241.75,6.29301469]
[1732747046269,2.4752,241.84,241.72,2.0658]
[1732747046473,2.0655,241.77,241.73,6.29301469]
[1732747047270,2.0652,241.8,241.75,8.35861469]
[1732747047471,8.76821469,241.84,241.73,6.29301469]
[1732747047776,2.0651,241.81,241.75,6.29301469]
[1732747047978,8.76821469,241.84,241.75,6.29301469]
[1732747048671,2.4752,241.84,241.75,6.29301469]
[1732747048880,6.29301469,241.83,241.75,6.29301469]
[1732747049980,6.29301469,241.83,241.73,2.0657]
[1732747049981,6.29301469,241.83,241.73,6.29301469]
[1732747050175,2.4752,241.84,241.72,2.3]
[1732747050176,6.29301469,241.81,241.72,2.3]
[1732747050479,6.29301469,241.81,241.72,8.59301469]
[1732747050875,2.0654,241.78,241.72,8.59301469]
[1732747051274,6.29301469,241.81,241.72,8.59301469]
[1732747051676,2.0655,241.77,241.72,8.59301469]
[1732747051877,6.29301469,241.81,241.72,8.59301469]
[1732747052169,6.29301469,241.81,241.72,2.3]
[1732747052170,2.0656,241.76,241.72,2.3]
[1732747057777,2.0656,241.76,241.73,6.29301469]
[1732747057981,2.0655,241.77,241.73,6.29301469]
[1732747058372,2.0656,241.76,241.73,6.29301469]
[1732747058573,2.0656,241.76,241.72,2.3]
[1732747059282,2.0656,241.76,241.73,3.12214836]
[1732747059484,2.0656,241.76,241.72,2.3]
[1732747059677,2.0656,241.76,241.73,3.12214833]
[1732747059880,2.0656,241.76,241.72,2.3]
[1732747060074,2.0656,241.76,241.73,3.12214537]
[1732747060280,2.0656,241.76,241.72,2.3]
[1732747060585,2.0656,241.75,241.72,2.3]
[1732747060774,6.29301469,241.78,241.72,2.3]
[1732747060975,2.0654,241.78,241.72,2.3]
[1732747061181,6.29301469,241.8,241.72,2.3]
[1732747061481,35.24746581,241.84,241.72,8.59301469]
[1732747061676,6.29301469,241.81,241.72,8.59301469]
[1732747061880,6.29301469,241.81,241.73,3.12407594]
[1732747062078,6.29301469,241.81,241.72,8.59301469]
[1732747062079,2.0653,241.8,241.76,6.29301469]
[1732747062279,6.29301469,241.85,241.77,3.1246559]
[1732747062586,6.29301469,241.85,241.78,3.1246559]
[1732747062784,6.29301469,241.85,241.76,6.29301469]
[1732747063086,2.065,241.82,241.77,8.12248688]
[1732747063381,2.065,241.82,241.78,8.1252597]
[1732747063687,6.29301469,241.86,241.79,3.12410929]
[1732747063886,6.29301469,241.86,241.76,6.29301469]
[1732747063887,6.29301469,241.86,241.8,3.12410929]
[1732747064088,6.29301469,241.86,241.81,3.12410929]
[1732747064386,2.065,241.83,241.77,2.0654]
[1732747064587,6.29301469,241.86,241.78,8.1311041]
[1732747064782,1.2546,241.87,241.79,8.1311041]
[1732747064977,6.29301469,241.85,241.8,3.12734773]
[1732747065180,6.29301469,241.85,241.81,3.12734773]
[1732747065485,6.29301469,241.85,241.77,2.0654]
[1732747065785,6.29301469,241.85,241.78,8.13229943]
[1732747065992,6.29301469,241.85,241.79,8.13229943]
[1732747066180,6.29301469,241.85,241.8,3.12780747]
[1732747066376,6.29301469,241.85,241.81,3.12855269]
[1732747066576,2.065,241.83,241.77,2.0654]
[1732747066780,6.29301469,241.85,241.78,8.1390934]
[1732747066980,6.29301469,241.85,241.79,8.1390934]
[1732747067181,6.29301469,241.85,241.8,8.1390934]
[1732747067380,6.29301469,241.85,241.81,3.13042054]
[1732747067584,2.0649,241.83,241.82,3.13042054]
[1732747068486,6.29301469,241.87,241.82,3.13042054]
[1732747068686,6.29301469,241.87,241.83,3.13042054]
[1732747068883,32.76457429,241.9,241.84,3.13042054]
[1732747069086,2.0648,241.86,241.81,2.065]
[1732747069287,2.0648,241.86,241.82,8.16116102]
[1732747069488,2.0648,241.86,241.83,8.16116102]
[1732747069686,2.0648,241.86,241.84,3.13894965]
[1732747069889,2.0648,241.86,241.81,2.065]
[1732747070189,2.0648,241.86,241.82,8.15997983]
[1732747070393,2.0648,241.86,241.83,8.15997983]
[1732747070690,6.29301469,241.88,241.84,3.13845378]
[1732747070884,6.29301469,241.88,241.81,2.065]
[1732747071089,6.29301469,241.88,241.82,8.17051881]
[1732747071289,6.29301469,241.88,241.83,8.17051881]
[1732747071494,6.29301469,241.86,241.84,3.14250478]
[1732747071691,6.29301469,241.86,241.8,2.0652]
[1732747071895,6.29301469,241.86,241.81,3.01530012]
[1732747072192,8.35771469,241.86,241.81,2.0651]
[1732747072588,6.29301469,241.86,241.78,2.3]
[1732747072789,6.29301469,241.86,241.79,3.01836024]
[1732747072988,6.29301469,241.86,241.8,3.01836024]
[1732747073292,2.0648,241.85,241.81,3.01836024]
[1732747073597,2.0648,241.85,241.78,2.3]
[1732747073894,2.0648,241.85,241.79,3.02046037]
[1732747074089,2.0648,241.85,241.8,3.02046037]
[1732747074292,2.0648,241.85,241.81,3.02046037]
[1732747074496,2.0648,241.85,241.82,3.02046037]
[1732747074697,2.0648,241.85,241.78,2.3]
[1732747075092,6.29301469,241.86,241.78,2.3]
[1732747075990,6.29301469,241.86,241.79,2.0652]
[1732747076706,2.0649,241.84,241.79,2.0652]
[1732747077799,6.29301469,241.86,241.79,2.0652]
[1732747077993,6.29301469,241.84,241.79,2.0652]
[1732747078201,2.065,241.83,241.79,2.0652]
[1732747078893,6.29301469,241.84,241.76,6.29301469]
[1732747079099,2.0652,241.81,241.77,4.3654]
[1732747082199,6.29301469,241.84,241.77,4.3654]
[1732747082905,2.0652,241.81,241.77,4.3654]
[1732747083096,6.29301469,241.84,241.77,4.3654]
[1732747083296,6.29301469,241.84,241.77,2.3]
[1732747084097,6.29301469,241.84,241.76,6.29301469]
[1732747084404,32.76457429,241.9,241.77,2.3]
[1732747084594,6.29301469,241.87,241.77,2.3]
[1732747085397,2.0649,241.84,241.77,4.3654]
[1732747085601,6.29301469,241.87,241.77,4.3654]
[1732747086399,2.0651,241.81,241.77,4.3654]
[1732747086803,2.0651,241.81,241.77,2.0654]